[Event "Titled Tuesday Blitz December 20 Early 2022"]
[White "Rapy, Francois"]
[Black "Malich, Burkhard, Dr."]
[WhiteFideId "26041324"]
[BlackFideId "4611330"]
[WhiteElo "1642"]
[BlackElo "2323"]
[Result "0-1"]
[Round "03"]
[TimeControl "180+2"]
[Date "2022.12.20"]
[WhiteClock "0:00:01"]
[BlackClock "0:00:19"]

1. e4 {[%clk 0:03:00]}  c5 {[%clk 0:02:59]} 2. Nc3 {[%clk 0:03:00]}  Nc6 {[%clk 0:02:59]} 3. Bb5 {[%clk 0:03:00]}  Nd4 {[%clk 0:03:00]} 4. Nf3 {[%clk 0:02:59]}  a6 {[%clk 0:02:48]} 5. Bd3 {[%clk 0:02:59]}  d6 {[%clk 0:02:41]} 6. Nxd4 {[%clk 0:02:55]}  cxd4 {[%clk 0:02:40]} 7. Ne2 {[%clk 0:02:55]}  e5 {[%clk 0:02:40]} 8. O-O {[%clk 0:02:51]}  Nf6 {[%clk 0:02:24]} 9. c3 {[%clk 0:02:50]}  dxc3 {[%clk 0:02:23]} 10. dxc3 {[%clk 0:02:51]}  Be7 {[%clk 0:02:21]} 11. f4 {[%clk 0:02:42]}  O-O {[%clk 0:02:21]} 12. c4 {[%clk 0:02:33]}  Bd7 {[%clk 0:02:14]} 13. Nc3 {[%clk 0:02:32]}  Bc6 {[%clk 0:02:14]} 14. Nd5 {[%clk 0:02:30]}  b5 {[%clk 0:02:02]} 15. b3 {[%clk 0:01:52]}  bxc4 {[%clk 0:01:52]} 16. bxc4 {[%clk 0:01:52]}  Rc8 {[%clk 0:01:52]} 17. Kh1 {[%clk 0:01:42]}  Nd7 {[%clk 0:01:49]} 18. Be3 {[%clk 0:01:09]}  exf4 {[%clk 0:01:49]} 19. Bxf4 {[%clk 0:00:46]}  Ne5 {[%clk 0:01:49]} 20. Bxe5 {[%clk 0:00:38]}  dxe5 {[%clk 0:01:50]} 21. Qh5 {[%clk 0:00:25]}  f6 {[%clk 0:00:55]} 22. Rf3 {[%clk 0:00:25]}  Be8 {[%clk 0:00:52]} 23. Qg4 {[%clk 0:00:21]}  Bc5 {[%clk 0:00:36]} 24. Rg3 {[%clk 0:00:16]}  Qd7 {[%clk 0:00:37]} 25. Qh4 {[%clk 0:00:14]}  Bg6 {[%clk 0:00:35]} 26. Rf1 {[%clk 0:00:12]}  Rb8 {[%clk 0:00:35]} 27. h3 {[%clk 0:00:10]}  Rb2 {[%clk 0:00:34]} 28. Kh2 {[%clk 0:00:09]}  Rd2 {[%clk 0:00:34]} 29. Rb1 {[%clk 0:00:06]}  Bd4 {[%clk 0:00:32]} 30. a4 {[%clk 0:00:04]}  Bf2 {[%clk 0:00:28]} 31. Qg4 {[%clk 0:00:03]}  Bxg3+ {[%clk 0:00:27]} 32. Qxg3 {[%clk 0:00:04]}  Kh8 {[%clk 0:00:22]} 33. Rf1 {[%clk 0:00:04]}  Qxa4 {[%clk 0:00:22]} 34. h4 {[%clk 0:00:04]}  Qa2 {[%clk 0:00:21]} 35. h5 {[%clk 0:00:02]}  Bxh5 {[%clk 0:00:22]} 36. Ne7 {[%clk 0:00:01]}  Qb3 {[%clk 0:00:19]} 37. Nf5 {[%clk 0:00:01]}  Bg6 {[%clk 0:00:17]} 38. Nh4 {[%clk 0:00:01]}  Qxd3 {[%clk 0:00:18]} 39. Nxg6+ {[%clk 0:00:01]}  hxg6 {[%clk 0:00:18]} 40. Qh4+ {[%clk 0:00:01]}  Kg8 {[%clk 0:00:19]} 41. Rf3 {[%clk 0:00:01]}  Qe2 {[%clk 0:00:19]} 42. Rg3 {[%clk 0:00:02]}  g5 {[%clk 0:00:19]} 43. Qh5 {[%clk 0:00:01]}  Qxh5+ {[%clk 0:00:19]} 0-1


[Site "https://www.chess.com"]

[Event "Titled Tuesday Blitz December 20 Early 2022"]
[White "Richterman, Pavel"]
[Black "BlueWizzard"]
[WhiteFideId "2829690"]
[WhiteElo "2062"]
[BlackElo "2862"]
[Result "0-1"]
[Round "03"]
[TimeControl "180+2"]
[Date "2022.12.20"]
[WhiteClock "0:00:19"]
[BlackClock "0:00:23"]

1. c4 {[%clk 0:03:00]}  c5 {[%clk 0:02:59]} 2. Nc3 {[%clk 0:02:52]}  b6 {[%clk 0:02:58]} 3. b3 {[%clk 0:02:50]}  Bb7 {[%clk 0:02:58]} 4. Bb2 {[%clk 0:02:51]}  Nf6 {[%clk 0:02:56]} 5. Nf3 {[%clk 0:02:42]}  Nc6 {[%clk 0:02:49]} 6. Nd5 {[%clk 0:02:34]}  e6 {[%clk 0:02:41]} 7. Nxf6+ {[%clk 0:02:34]}  gxf6 {[%clk 0:02:42]} 8. g3 {[%clk 0:02:31]}  Be7 {[%clk 0:02:31]} 9. Bg2 {[%clk 0:02:31]}  h5 {[%clk 0:02:31]} 10. h4 {[%clk 0:02:19]}  d5 {[%clk 0:02:24]} 11. cxd5 {[%clk 0:02:17]}  Qxd5 {[%clk 0:02:25]} 12. O-O {[%clk 0:01:57]}  Rg8 {[%clk 0:02:05]} 13. d4 {[%clk 0:01:40]}  Nxd4 {[%clk 0:01:30]} 14. Bxd4 {[%clk 0:01:32]}  cxd4 {[%clk 0:01:29]} 15. Ne1 {[%clk 0:01:22]}  Qd7 {[%clk 0:01:26]} 16. Bxb7 {[%clk 0:01:22]}  Qxb7 {[%clk 0:01:27]} 17. Qxd4 {[%clk 0:01:23]}  Rg4 {[%clk 0:01:20]} 18. Qd3 {[%clk 0:01:13]}  f5 {[%clk 0:01:12]} 19. Qf3 {[%clk 0:00:44]}  Qxf3 {[%clk 0:01:07]} 20. Nxf3 {[%clk 0:00:43]}  f4 {[%clk 0:01:04]} 21. Ne5 {[%clk 0:00:12]}  Rg7 {[%clk 0:00:59]} 22. Kh1 {[%clk 0:00:06]}  f6 {[%clk 0:00:43]} 23. Nf3 {[%clk 0:00:03]}  fxg3 {[%clk 0:00:42]} 24. fxg3 {[%clk 0:00:04]}  Rxg3 {[%clk 0:00:41]} 25. Rg1 {[%clk 0:00:05]}  Rg4 {[%clk 0:00:41]} 26. Rxg4 {[%clk 0:00:01]}  hxg4 {[%clk 0:00:42]} 27. Nh2 {[%clk 0:00:02]}  f5 {[%clk 0:00:42]} 28. h5 {[%clk 0:00:03]}  Kf7 {[%clk 0:00:42]} 29. Rf1 {[%clk 0:00:03]}  Rh8 {[%clk 0:00:38]} 30. Kg2 {[%clk 0:00:03]}  Rxh5 {[%clk 0:00:38]} 31. e4 {[%clk 0:00:03]}  Bd6 {[%clk 0:00:35]} 32. Nxg4 {[%clk 0:00:02]}  Rg5 {[%clk 0:00:35]} 33. Kh3 {[%clk 0:00:02]}  Rxg4 {[%clk 0:00:34]} 34. exf5 {[%clk 0:00:02]}  Rd4 {[%clk 0:00:33]} 35. fxe6+ {[%clk 0:00:03]}  Kxe6 {[%clk 0:00:34]} 36. Rf3 {[%clk 0:00:03]}  b5 {[%clk 0:00:33]} 37. Kg2 {[%clk 0:00:03]}  Rd2+ {[%clk 0:00:32]} 38. Rf2 {[%clk 0:00:03]}  Rxf2+ {[%clk 0:00:32]} 39. Kxf2 {[%clk 0:00:04]}  Kd5 {[%clk 0:00:33]} 40. Ke3 {[%clk 0:00:05]}  Bb4 {[%clk 0:00:32]} 41. Kd3 {[%clk 0:00:05]}  Ba3 {[%clk 0:00:29]} 42. Kc3 {[%clk 0:00:06]}  a5 {[%clk 0:00:29]} 43. Kd3 {[%clk 0:00:06]}  Ke5 {[%clk 0:00:29]} 44. Ke3 {[%clk 0:00:07]}  b4 {[%clk 0:00:22]} 45. Kd3 {[%clk 0:00:07]}  Kd5 {[%clk 0:00:23]} 46. Ke3 {[%clk 0:00:08]}  Bb2 {[%clk 0:00:23]} 47. Kd3 {[%clk 0:00:09]}  Bc1 {[%clk 0:00:23]} 48. Kc2 {[%clk 0:00:09]}  Bg5 {[%clk 0:00:24]} 49. Kd3 {[%clk 0:00:08]}  Bh6 {[%clk 0:00:24]} 50. Kc2 {[%clk 0:00:08]}  Kd4 {[%clk 0:00:25]} 51. a4 {[%clk 0:00:09]}  Ke3 {[%clk 0:00:22]} 52. Kb1 {[%clk 0:00:08]}  Kd3 {[%clk 0:00:22]} 53. Kb2 {[%clk 0:00:09]}  Kd2 {[%clk 0:00:22]} 54. Ka2 {[%clk 0:00:10]}  Kc3 {[%clk 0:00:22]} 55. Ka1 {[%clk 0:00:10]}  Kxb3 {[%clk 0:00:23]} 56. Kb1 {[%clk 0:00:11]}  Kxa4 {[%clk 0:00:23]} 57. Ka1 {[%clk 0:00:12]}  Kb3 {[%clk 0:00:23]} 58. Kb1 {[%clk 0:00:13]}  a4 {[%clk 0:00:24]} 59. Ka1 {[%clk 0:00:14]}  Bf8 {[%clk 0:00:23]} 60. Kb1 {[%clk 0:00:15]}  a3 {[%clk 0:00:23]} 61. Ka1 {[%clk 0:00:15]}  Be7 {[%clk 0:00:23]} 62. Kb1 {[%clk 0:00:16]}  a2+ {[%clk 0:00:24]} 63. Kc1 {[%clk 0:00:16]}  a1=Q+ {[%clk 0:00:23]} 64. Kd2 {[%clk 0:00:17]}  Qc3+ {[%clk 0:00:23]} 65. Kd1 {[%clk 0:00:18]}  Qb2 {[%clk 0:00:22]} 66. Ke1 {[%clk 0:00:18]}  Qh2 {[%clk 0:00:23]} 67. Kd1 {[%clk 0:00:19]}  Ka2 {[%clk 0:00:23]} 68. Kc1 {[%clk 0:00:19]}  b3 {[%clk 0:00:23]} 69. Kd1 {[%clk 0:00:19]}  b2 {[%clk 0:00:23]} 0-1


[Site "https://www.chess.com"]

[Event "Titled Tuesday Blitz December 20 Early 2022"]
[White "Rincon Zapatero, Alejandro"]
[Black "Liyanage, Ranindu Dilshan"]
[WhiteFideId "2288850"]
[BlackFideId "9915834"]
[WhiteElo "1752"]
[BlackElo "2342"]
[Result "1/2-1/2"]
[Round "03"]
[TimeControl "180+2"]
[Date "2022.12.20"]
[WhiteClock "0:00:14"]
[BlackClock "0:00:07"]

1. c4 {[%clk 0:02:59]}  e6 {[%clk 0:02:57]} 2. e4 {[%clk 0:02:59]}  c5 {[%clk 0:02:56]} 3. Nc3 {[%clk 0:03:00]}  Nc6 {[%clk 0:02:55]} 4. g3 {[%clk 0:03:00]}  g6 {[%clk 0:02:52]} 5. Bg2 {[%clk 0:03:01]}  Bg7 {[%clk 0:02:53]} 6. Nge2 {[%clk 0:03:01]}  d6 {[%clk 0:02:53]} 7. O-O {[%clk 0:03:02]}  Nge7 {[%clk 0:02:54]} 8. d3 {[%clk 0:03:02]}  O-O {[%clk 0:02:55]} 9. Be3 {[%clk 0:03:02]}  a6 {[%clk 0:02:55]} 10. d4 {[%clk 0:03:02]}  cxd4 {[%clk 0:02:55]} 11. Nxd4 {[%clk 0:03:03]}  Ne5 {[%clk 0:02:55]} 12. b3 {[%clk 0:03:02]}  Qc7 {[%clk 0:02:54]} 13. Rc1 {[%clk 0:02:59]}  Bd7 {[%clk 0:02:53]} 14. f4 {[%clk 0:02:59]}  N5c6 {[%clk 0:02:52]} 15. Nd5 {[%clk 0:02:49]}  exd5 {[%clk 0:02:45]} 16. cxd5 {[%clk 0:02:50]}  Qa5 {[%clk 0:02:41]} 17. dxc6 {[%clk 0:02:49]}  bxc6 {[%clk 0:02:42]} 18. f5 {[%clk 0:02:13]}  gxf5 {[%clk 0:02:28]} 19. Nxf5 {[%clk 0:02:01]}  Bxf5 {[%clk 0:02:22]} 20. exf5 {[%clk 0:01:56]}  Nxf5 {[%clk 0:02:23]} 21. Qh5 {[%clk 0:01:46]}  Qe5 {[%clk 0:01:56]} 22. Bf4 {[%clk 0:01:29]}  Qa5 {[%clk 0:01:43]} 23. Be4 {[%clk 0:01:20]}  Bd4+ {[%clk 0:01:40]} 24. Rf2 {[%clk 0:00:56]}  Rfe8 {[%clk 0:01:02]} 25. Qxf5 {[%clk 0:00:09]}  Qxf5 {[%clk 0:01:01]} 26. Bxf5 {[%clk 0:00:10]}  Re2 {[%clk 0:01:02]} 27. Rf1 {[%clk 0:00:11]}  Rxa2 {[%clk 0:01:01]} 28. Kg2 {[%clk 0:00:12]}  Bxf2 {[%clk 0:01:00]} 29. Rxf2 {[%clk 0:00:13]}  Rxf2+ {[%clk 0:01:00]} 30. Kxf2 {[%clk 0:00:13]}  d5 {[%clk 0:01:01]} 31. Bd7 {[%clk 0:00:13]}  c5 {[%clk 0:01:01]} 32. Bc6 {[%clk 0:00:13]}  Rd8 {[%clk 0:01:02]} 33. Bd2 {[%clk 0:00:12]}  Rd6 {[%clk 0:00:59]} 34. Bb7 {[%clk 0:00:12]}  d4 {[%clk 0:00:57]} 35. Ke2 {[%clk 0:00:11]}  Kf8 {[%clk 0:00:38]} 36. Bf4 {[%clk 0:00:10]}  Rb6 {[%clk 0:00:32]} 37. Bd5 {[%clk 0:00:10]}  Ke7 {[%clk 0:00:32]} 38. Bc4 {[%clk 0:00:10]}  f6 {[%clk 0:00:25]} 39. Kd3 {[%clk 0:00:11]}  Kd7 {[%clk 0:00:25]} 40. Ke4 {[%clk 0:00:11]}  a5 {[%clk 0:00:24]} 41. Kd5 {[%clk 0:00:10]}  d3 {[%clk 0:00:15]} 42. Kxc5 {[%clk 0:00:09]}  Rb4 {[%clk 0:00:13]} 43. Kd4 {[%clk 0:00:09]}  a4 {[%clk 0:00:13]} 44. bxa4 {[%clk 0:00:10]}  Rxa4 {[%clk 0:00:11]} 45. Kxd3 {[%clk 0:00:11]}  Ke7 {[%clk 0:00:11]} 46. h4 {[%clk 0:00:11]}  Ra3+ {[%clk 0:00:11]} 47. Kd4 {[%clk 0:00:10]}  Ra1 {[%clk 0:00:12]} 48. Bd3 {[%clk 0:00:10]}  Rd1 {[%clk 0:00:12]} 49. Ke3 {[%clk 0:00:10]}  h5 {[%clk 0:00:12]} 50. Bg6 {[%clk 0:00:10]}  Rd5 {[%clk 0:00:13]} 51. Ke4 {[%clk 0:00:10]}  Ra5 {[%clk 0:00:12]} 52. Kf3 {[%clk 0:00:10]}  Kf8 {[%clk 0:00:12]} 53. Ke4 {[%clk 0:00:10]}  Kg7 {[%clk 0:00:12]} 54. Be8 {[%clk 0:00:11]}  Ra4+ {[%clk 0:00:12]} 55. Kf3 {[%clk 0:00:11]}  Ra3+ {[%clk 0:00:13]} 56. Ke4 {[%clk 0:00:11]}  Ra5 {[%clk 0:00:13]} 57. Bd7 {[%clk 0:00:11]}  Ra1 {[%clk 0:00:12]} 58. Be8 {[%clk 0:00:11]}  Re1+ {[%clk 0:00:13]} 59. Be3 {[%clk 0:00:12]}  f5+ {[%clk 0:00:08]} 60. Kf4 {[%clk 0:00:10]}  Rf1+ {[%clk 0:00:07]} 61. Ke5 {[%clk 0:00:09]}  Re1 {[%clk 0:00:07]} 62. Kd4 {[%clk 0:00:09]}  Rd1+ {[%clk 0:00:08]} 63. Kc3 {[%clk 0:00:10]}  Re1 {[%clk 0:00:03]} 64. Kd2 {[%clk 0:00:10]}  Ra1 {[%clk 0:00:03]} 65. Bxh5 {[%clk 0:00:11]}  Ra2+ {[%clk 0:00:03]} 66. Kd3 {[%clk 0:00:11]}  Ra3+ {[%clk 0:00:04]} 67. Kd4 {[%clk 0:00:11]}  Ra4+ {[%clk 0:00:04]} 68. Ke5 {[%clk 0:00:12]}  Ra5+ {[%clk 0:00:05]} 69. Kf4 {[%clk 0:00:12]}  Kf6 {[%clk 0:00:06]} 70. Bd4+ {[%clk 0:00:12]}  Ke6 {[%clk 0:00:06]} 71. Bg7 {[%clk 0:00:11]}  Ra4+ {[%clk 0:00:05]} 72. Kg5 {[%clk 0:00:12]}  Ra3 {[%clk 0:00:05]} 73. g4 {[%clk 0:00:12]}  fxg4 {[%clk 0:00:05]} 74. Bxg4+ {[%clk 0:00:13]}  Kf7 {[%clk 0:00:06]} 75. Be5 {[%clk 0:00:13]}  Ra5 {[%clk 0:00:06]} 76. Kf4 {[%clk 0:00:13]}  Ra4+ {[%clk 0:00:07]} 77. Kf5 {[%clk 0:00:13]}  Ra5 {[%clk 0:00:06]} 78. h5 {[%clk 0:00:14]}  Kg8 {[%clk 0:00:07]} 79. h6 {[%clk 0:00:14]}  Kh7 {[%clk 0:00:08]} 80. Kf6 {[%clk 0:00:11]}  Kxh6 {[%clk 0:00:07]} 81. Bf4+ {[%clk 0:00:12]}  Kh7 {[%clk 0:00:08]} 82. Bf5+ {[%clk 0:00:13]}  Kg8 {[%clk 0:00:08]} 83. Be5 {[%clk 0:00:14]}  Ra6+ {[%clk 0:00:08]} 84. Be6+ {[%clk 0:00:15]}  Kh7 {[%clk 0:00:08]} 85. Kf5 {[%clk 0:00:15]}  Ra3 {[%clk 0:00:07]} 86. Kf6 {[%clk 0:00:16]}  Ra6 {[%clk 0:00:06]} 87. Kf5 {[%clk 0:00:16]}  Ra5 {[%clk 0:00:07]} 88. Kf6 {[%clk 0:00:17]}  Ra7 {[%clk 0:00:07]} 89. Bf5+ {[%clk 0:00:17]}  Kh6 {[%clk 0:00:07]} 90. Bf4+ {[%clk 0:00:17]}  Kh5 {[%clk 0:00:08]} 91. Ke5 {[%clk 0:00:17]}  Ra5+ {[%clk 0:00:07]} 92. Kf6 {[%clk 0:00:17]}  Ra6+ {[%clk 0:00:07]} 93. Ke5 {[%clk 0:00:17]}  Ra5+ {[%clk 0:00:08]} 94. Kf6 {[%clk 0:00:18]}  Kh4 {[%clk 0:00:09]} 95. Be6 {[%clk 0:00:15]}  Ra6 {[%clk 0:00:07]} 96. Be5 {[%clk 0:00:15]}  Kh5 {[%clk 0:00:06]} 97. Kf5 {[%clk 0:00:14]}  Ra5 {[%clk 0:00:06]} 98. Bf7+ {[%clk 0:00:15]}  Kh4 {[%clk 0:00:06]} 99. Be6 {[%clk 0:00:14]}  Rxe5+ {[%clk 0:00:07]} 100. Kxe5 {[%clk 0:00:14]} 1/2-1/2


[Site "https://www.chess.com"]

[Event "Titled Tuesday Blitz December 20 Early 2022"]
[White "Sapon, Ilia"]
[Black "Flawless_Fighter"]
[WhiteFideId "13504746"]
[WhiteElo "2074"]
[BlackElo "2622"]
[Result "0-1"]
[Round "03"]
[TimeControl "180+2"]
[Date "2022.12.20"]
[WhiteClock "0:00:15"]
[BlackClock "0:00:02"]

1. e4 {[%clk 0:03:00]}  e5 {[%clk 0:02:59]} 2. Nf3 {[%clk 0:02:57]}  Nc6 {[%clk 0:02:59]} 3. Bb5 {[%clk 0:02:56]}  a6 {[%clk 0:02:55]} 4. Ba4 {[%clk 0:02:56]}  Nf6 {[%clk 0:02:54]} 5. d3 {[%clk 0:02:54]}  b5 {[%clk 0:02:53]} 6. Bb3 {[%clk 0:02:54]}  d6 {[%clk 0:02:54]} 7. c3 {[%clk 0:02:54]}  Be7 {[%clk 0:02:49]} 8. O-O {[%clk 0:02:53]}  O-O {[%clk 0:02:48]} 9. Re1 {[%clk 0:02:53]}  Na5 {[%clk 0:02:41]} 10. Bc2 {[%clk 0:02:53]}  c5 {[%clk 0:02:41]} 11. Nbd2 {[%clk 0:02:53]}  Nc6 {[%clk 0:02:40]} 12. a4 {[%clk 0:02:50]}  Be6 {[%clk 0:02:38]} 13. Nf1 {[%clk 0:02:45]}  Qc7 {[%clk 0:02:26]} 14. Ng3 {[%clk 0:02:23]}  Rad8 {[%clk 0:02:21]} 15. Ng5 {[%clk 0:02:10]}  Bc8 {[%clk 0:02:15]} 16. h3 {[%clk 0:02:08]}  h6 {[%clk 0:02:13]} 17. Nf3 {[%clk 0:02:08]}  d5 {[%clk 0:02:07]} 18. axb5 {[%clk 0:01:58]}  axb5 {[%clk 0:02:05]} 19. Qe2 {[%clk 0:01:47]}  Rfe8 {[%clk 0:01:56]} 20. Nh4 {[%clk 0:01:38]}  Nxe4 {[%clk 0:01:17]} 21. dxe4 {[%clk 0:01:35]}  Bxh4 {[%clk 0:01:15]} 22. exd5 {[%clk 0:01:36]}  Bxg3 {[%clk 0:01:14]} 23. dxc6 {[%clk 0:01:26]}  Bh4 {[%clk 0:01:07]} 24. Qe4 {[%clk 0:01:21]}  Bf6 {[%clk 0:01:05]} 25. Be3 {[%clk 0:01:07]}  g6 {[%clk 0:00:58]} 26. Bxc5 {[%clk 0:00:54]}  Bf5 {[%clk 0:00:57]} 27. Qe2 {[%clk 0:00:55]}  Bxc2 {[%clk 0:00:55]} 28. Qxc2 {[%clk 0:00:56]}  Qxc6 {[%clk 0:00:56]} 29. Bb4 {[%clk 0:00:51]}  Bg7 {[%clk 0:00:55]} 30. Qb3 {[%clk 0:00:50]}  e4 {[%clk 0:00:53]} 31. Ra7 {[%clk 0:00:47]}  Rd7 {[%clk 0:00:53]} 32. Rxd7 {[%clk 0:00:46]}  Qxd7 {[%clk 0:00:54]} 33. Rd1 {[%clk 0:00:47]}  Qc6 {[%clk 0:00:52]} 34. Qd5 {[%clk 0:00:46]}  Qb6 {[%clk 0:00:18]} 35. Qd7 {[%clk 0:00:41]}  Rb8 {[%clk 0:00:14]} 36. Rd6 {[%clk 0:00:33]}  Qb7 {[%clk 0:00:08]} 37. Kf1 {[%clk 0:00:23]}  Qxd7 {[%clk 0:00:03]} 38. Rxd7 {[%clk 0:00:24]}  f5 {[%clk 0:00:03]} 39. g4 {[%clk 0:00:20]}  fxg4 {[%clk 0:00:02]} 40. hxg4 {[%clk 0:00:21]}  Bf6 {[%clk 0:00:02]} 41. Ke2 {[%clk 0:00:17]}  Bg5 {[%clk 0:00:03]} 42. Rd6 {[%clk 0:00:14]}  Kf7 {[%clk 0:00:02]} 43. Re6 {[%clk 0:00:15]}  Kxe6 {[%clk 0:00:02]} 0-1


[Site "https://www.chess.com"]

[Event "Titled Tuesday Blitz December 20 Early 2022"]
[White "Sferra, Bob"]
[Black "Steegersee"]
[WhiteFideId "2007266"]
[WhiteElo "2263"]
[BlackElo "2425"]
[Result "1-0"]
[Round "03"]
[TimeControl "180+2"]
[Date "2022.12.20"]
[WhiteClock "0:00:17"]
[BlackClock "0:00:07"]

1. Nf3 {[%clk 0:03:00]}  c5 {[%clk 0:02:46]} 2. c4 {[%clk 0:03:01]}  Nc6 {[%clk 0:02:42]} 3. b3 {[%clk 0:02:31]}  Nf6 {[%clk 0:02:40]} 4. Bb2 {[%clk 0:02:32]}  e6 {[%clk 0:02:40]} 5. g3 {[%clk 0:02:31]}  d5 {[%clk 0:02:35]} 6. cxd5 {[%clk 0:02:32]}  exd5 {[%clk 0:02:34]} 7. Bg2 {[%clk 0:02:33]}  Be7 {[%clk 0:02:34]} 8. Kf1 {[%clk 0:02:34]}  O-O {[%clk 0:02:34]} 9. d3 {[%clk 0:02:31]}  Be6 {[%clk 0:02:34]} 10. Nbd2 {[%clk 0:02:32]}  d4 {[%clk 0:02:34]} 11. h3 {[%clk 0:02:30]}  Rc8 {[%clk 0:02:34]} 12. Kg1 {[%clk 0:02:28]}  h6 {[%clk 0:02:29]} 13. Kh2 {[%clk 0:02:28]}  Nd5 {[%clk 0:02:29]} 14. a3 {[%clk 0:02:21]}  a5 {[%clk 0:02:26]} 15. Re1 {[%clk 0:02:17]}  f5 {[%clk 0:02:24]} 16. e4 {[%clk 0:02:16]}  dxe3 {[%clk 0:02:12]} 17. fxe3 {[%clk 0:02:17]}  Bf6 {[%clk 0:02:12]} 18. Qc2 {[%clk 0:02:08]}  b6 {[%clk 0:02:02]} 19. Rad1 {[%clk 0:02:01]}  Qc7 {[%clk 0:01:46]} 20. e4 {[%clk 0:01:57]}  fxe4 {[%clk 0:01:45]} 21. dxe4 {[%clk 0:01:58]}  Nde7 {[%clk 0:01:44]} 22. e5 {[%clk 0:01:58]}  Bg5 {[%clk 0:01:43]} 23. Nxg5 {[%clk 0:01:57]}  hxg5 {[%clk 0:01:43]} 24. Nf3 {[%clk 0:01:52]}  g4 {[%clk 0:01:35]} 25. Ng5 {[%clk 0:01:49]}  Bf5 {[%clk 0:01:35]} 26. Qc4+ {[%clk 0:01:49]}  Kh8 {[%clk 0:01:26]} 27. hxg4 {[%clk 0:01:49]}  Bg6 {[%clk 0:01:19]} 28. Rd6 {[%clk 0:01:49]}  Rf2 {[%clk 0:01:12]} 29. Re2 {[%clk 0:01:41]}  Rcf8 {[%clk 0:01:01]} 30. Ne6 {[%clk 0:01:39]}  Qc8 {[%clk 0:00:52]} 31. Nxf8 {[%clk 0:01:39]}  Qxf8 {[%clk 0:00:52]} 32. Rf6 {[%clk 0:01:06]}  Rxg2+ {[%clk 0:00:46]} 33. Kxg2 {[%clk 0:01:07]}  gxf6 {[%clk 0:00:46]} 34. exf6 {[%clk 0:01:08]}  Nc8 {[%clk 0:00:36]} 35. Qd5 {[%clk 0:00:59]}  Nd4 {[%clk 0:00:33]} 36. Bxd4 {[%clk 0:00:58]}  cxd4 {[%clk 0:00:34]} 37. Qxd4 {[%clk 0:00:57]}  Nd6 {[%clk 0:00:31]} 38. Re7 {[%clk 0:00:38]}  Nf7 {[%clk 0:00:14]} 39. Qxb6 {[%clk 0:00:33]}  Qc8 {[%clk 0:00:13]} 40. Qc7 {[%clk 0:00:22]}  Qxg4 {[%clk 0:00:10]} 41. Re8+ {[%clk 0:00:17]}  Kh7 {[%clk 0:00:09]} 42. Qf4 {[%clk 0:00:18]}  Qd7 {[%clk 0:00:07]} 43. Qh4+ {[%clk 0:00:17]} 1-0


[Site "https://www.chess.com"]

[Event "Titled Tuesday Blitz December 20 Early 2022"]
[White "ShahxaibKhan"]
[Black "Arancibia Guzman, Eduardo"]
[BlackFideId "3400670"]
[WhiteElo "2382"]
[BlackElo "2333"]
[Result "1-0"]
[Round "03"]
[TimeControl "180+2"]
[Date "2022.12.20"]
[WhiteClock "0:00:41"]
[BlackClock "0:00:06"]

1. e4 {[%clk 0:02:56]}  c5 {[%clk 0:02:59]} 2. Nc3 {[%clk 0:02:55]}  a6 {[%clk 0:02:57]} 3. f4 {[%clk 0:02:56]}  b5 {[%clk 0:02:57]} 4. Nf3 {[%clk 0:02:57]}  b4 {[%clk 0:02:56]} 5. Na4 {[%clk 0:02:56]}  e6 {[%clk 0:02:51]} 6. d4 {[%clk 0:02:55]}  cxd4 {[%clk 0:02:49]} 7. Qxd4 {[%clk 0:02:55]}  Nc6 {[%clk 0:02:46]} 8. Qf2 {[%clk 0:02:55]}  Nf6 {[%clk 0:02:44]} 9. Bd3 {[%clk 0:02:55]}  d5 {[%clk 0:02:43]} 10. e5 {[%clk 0:02:54]}  Ne4 {[%clk 0:02:44]} 11. Bxe4 {[%clk 0:02:54]}  dxe4 {[%clk 0:02:44]} 12. Ng5 {[%clk 0:02:54]}  Qa5 {[%clk 0:02:23]} 13. b3 {[%clk 0:02:53]}  Be7 {[%clk 0:02:08]} 14. Nxe4 {[%clk 0:02:50]}  O-O {[%clk 0:02:08]} 15. Be3 {[%clk 0:02:49]}  Rb8 {[%clk 0:02:04]} 16. Bb6 {[%clk 0:02:38]}  Qb5 {[%clk 0:01:55]} 17. c4 {[%clk 0:02:14]}  bxc3 {[%clk 0:01:53]} 18. Nexc3 {[%clk 0:02:14]}  Bb4 {[%clk 0:01:45]} 19. Bc5 {[%clk 0:01:53]}  Qa5 {[%clk 0:01:31]} 20. Bxb4 {[%clk 0:01:45]}  Nxb4 {[%clk 0:01:31]} 21. O-O {[%clk 0:01:44]}  Bd7 {[%clk 0:01:24]} 22. Nc5 {[%clk 0:01:42]}  Bb5 {[%clk 0:01:18]} 23. Nxb5 {[%clk 0:01:39]}  Qxb5 {[%clk 0:01:12]} 24. a4 {[%clk 0:01:32]}  Qa5 {[%clk 0:01:01]} 25. Nd7 {[%clk 0:01:30]}  Nd3 {[%clk 0:00:53]} 26. Qg3 {[%clk 0:01:24]}  Rxb3 {[%clk 0:00:47]} 27. Nxf8 {[%clk 0:01:19]}  Kxf8 {[%clk 0:00:39]} 28. Rad1 {[%clk 0:01:16]}  Qb6+ {[%clk 0:00:35]} 29. Kh1 {[%clk 0:01:15]}  Nxe5 {[%clk 0:00:32]} 30. Qh4 {[%clk 0:01:14]}  Nc6 {[%clk 0:00:26]} 31. Qxh7 {[%clk 0:01:11]}  Rb2 {[%clk 0:00:19]} 32. Rd7 {[%clk 0:01:06]}  Ke8 {[%clk 0:00:17]} 33. Rfd1 {[%clk 0:01:02]}  Nd4 {[%clk 0:00:06]} 34. Qg8+ {[%clk 0:01:01]}  Kxd7 {[%clk 0:00:06]} 35. Qxf7+ {[%clk 0:01:01]}  Kd6 {[%clk 0:00:06]} 36. Qf8+ {[%clk 0:00:59]}  Kd5 {[%clk 0:00:06]} 37. Qxg7 {[%clk 0:00:57]}  Qc5 {[%clk 0:00:05]} 38. Qe5+ {[%clk 0:00:55]}  Kc4 {[%clk 0:00:06]} 39. Rc1+ {[%clk 0:00:50]}  Kd3 {[%clk 0:00:06]} 40. Qxc5 {[%clk 0:00:41]} 1-0


[Site "https://www.chess.com"]

[Event "Titled Tuesday Blitz December 20 Early 2022"]
[White "Shockerlover"]
[Black "Haimov, Elchanan"]
[BlackFideId "2835916"]
[WhiteElo "1948"]
[BlackElo "1707"]
[Result "0-1"]
[Round "03"]
[TimeControl "180+2"]
[Date "2022.12.20"]
[WhiteClock "0:00:01"]
[BlackClock "0:02:03"]

1. d4 {[%clk 0:03:00]}  Nf6 {[%clk 0:02:59]} 2. Nf3 {[%clk 0:02:59]}  g6 {[%clk 0:02:47]} 3. c4 {[%clk 0:02:50]}  Bg7 {[%clk 0:02:48]} 4. g3 {[%clk 0:02:50]}  O-O {[%clk 0:02:49]} 5. Bg2 {[%clk 0:02:50]}  d6 {[%clk 0:02:49]} 6. O-O {[%clk 0:02:50]}  c6 {[%clk 0:02:49]} 7. Nc3 {[%clk 0:02:51]}  Qa5 {[%clk 0:02:49]} 8. e4 {[%clk 0:02:49]}  Qh5 {[%clk 0:02:46]} 9. Ng5 {[%clk 0:02:33]}  h6 {[%clk 0:02:41]} 10. Qxh5 {[%clk 0:01:44]}  Nxh5 {[%clk 0:02:40]} 11. Nf3 {[%clk 0:01:43]}  Nd7 {[%clk 0:02:39]} 12. Re1 {[%clk 0:01:41]}  e5 {[%clk 0:02:36]} 13. dxe5 {[%clk 0:01:36]}  Nxe5 {[%clk 0:02:36]} 14. Nxe5 {[%clk 0:01:35]}  dxe5 {[%clk 0:02:37]} 15. Be3 {[%clk 0:01:34]}  Be6 {[%clk 0:02:37]} 16. c5 {[%clk 0:01:32]}  Nf6 {[%clk 0:02:33]} 17. Rad1 {[%clk 0:01:29]}  Rfd8 {[%clk 0:02:31]} 18. h3 {[%clk 0:00:55]}  Bf8 {[%clk 0:02:26]} 19. b4 {[%clk 0:00:53]}  Bc4 {[%clk 0:02:25]} 20. a3 {[%clk 0:00:43]}  a5 {[%clk 0:02:24]} 21. Rc1 {[%clk 0:00:37]}  axb4 {[%clk 0:02:21]} 22. axb4 {[%clk 0:00:36]}  Be6 {[%clk 0:02:19]} 23. Rc2 {[%clk 0:00:30]}  Ra3 {[%clk 0:02:17]} 24. Rb2 {[%clk 0:00:28]}  Rxc3 {[%clk 0:02:16]} 25. b5 {[%clk 0:00:27]}  Bd7 {[%clk 0:02:11]} 26. bxc6 {[%clk 0:00:26]}  Bxc6 {[%clk 0:02:11]} 27. Bd2 {[%clk 0:00:24]}  Rxc5 {[%clk 0:02:08]} 28. Bb4 {[%clk 0:00:24]}  Rb5 {[%clk 0:02:08]} 29. Bc3 {[%clk 0:00:07]}  Rxb2 {[%clk 0:02:07]} 30. Bxb2 {[%clk 0:00:07]}  Nd7 {[%clk 0:02:04]} 31. Bf1 {[%clk 0:00:03]}  Bg7 {[%clk 0:02:04]} 32. Bc4 {[%clk 0:00:04]}  Nb6 {[%clk 0:02:02]} 33. Bb3 {[%clk 0:00:03]}  Ba4 {[%clk 0:02:02]} 34. Ba2 {[%clk 0:00:03]}  Rd1 {[%clk 0:02:02]} 35. Rxd1 {[%clk 0:00:01]}  Bxd1 {[%clk 0:02:03]} 0-1


[Site "https://www.chess.com"]